Cogmind - Beta 15 @@@ ROGUE MODE // 2025.06.07 @ 13:55:27 Player: DZKane Result: Destroyed by G-47 Trooper with Particle Gun Performance ------------- Evolutions (2) 1000 Regions Visited (8) 1600 Robots Destroyed (130) 650 Value Destroyed (5896) 5896 Prototype IDs (6) 120 Alien Tech Used (0) 0 Bonus (2474) 2474 TOTAL SCORE: 11740 Bonus ------- High Alert Combat Kills 1499 Follower Combat Kills 575 Entered Garrisons 400 Cogmind --------- Core Integrity 0/550 Matter 300/300 Energy 275/275 System Corruption 3% Temperature Cool (9) Movement Walking (186) Ox1 Location -8/Materials Parts ------- > --- POWER (1) -------- Deuterium Engine > --- PROPULSION (4) --- Aluminum Leg Aluminum Leg VSS Leg > --- UTILITY (3) ------ Large Storage Unit Advanced Visual Processing Unit Actuator Array > --- WEAPON (3) ------- Powered Hammer Powered Hammer Powered Hammer > --- INVENTORY (15) --- Light Angular Momentum Engine VTOL Module VTOL Module VTOL Module VTOL Module High-capacity Matter Pod (200) Improved Sensor Array Improved Signal Interpreter Shield Generator Mini Grenade Launcher Missile Launcher Plasma Cutter Great Maul Powered Hammer Katana Peak State ------------ > --- POWER ------------ Cooled Ion Engine > --- PROPULSION ------- Aluminum Leg Carbon-fiber Leg VSS Leg VSS Leg > --- UTILITY ---------- Advanced Heat Sink Large Storage Unit Visual Processing Unit > --- WEAPON ----------- Flak Gun Flak Gun Flak Gun > --- INVENTORY -------- Light Nuclear Core VSS Leg Improved Flight Unit High-capacity Matter Pod Hardened Medium Armor Plating Reflective Plating Heavy Assault Rifle Heavy Assault Rifle Minigun Minigun Minigun High-powered Shotgun Flak Gun Mini Grenade Launcher Mini Grenade Launcher [Rating: 37] Favorites ----------- Power Cooled Ion Engine Engine Cooled Ion Engine Propulsion Aluminum Leg Leg Aluminum Leg Flight Unit Improved Flight Unit Utility Large Storage Unit Device Actuator Array Storage Large Storage Unit Processor Visual Processing Unit Protection Hardened Medium Armor Plating Weapon Flak Gun Energy Gun EM Pulse Gun Ballistic Gun Flak Gun Launcher Mini Grenade Launcher Impact Weapon Powered Hammer Build | -11 -10 -10 -9 -9 -9 -8 -8 -8 ------- Run | Yrd Mat Min Mat Sto Gar Mat Gar Mat Slots Evolved 4 | . . . 2 . . 2 . . Power . | . . . . . . . . . Propulsion 2 | . . . 2 . . . . . Utility 1 | . . . . . . 1 . . Weapon 1 | . . . . . . 1 . . Parts Attached 94 | . 7 1 2 7 34 6 17 20 Power 7 | . 2 . . 2 2 . . 1 Engine 7 | . 2 . . 2 2 . . 1 Core . | . . . . . . . . . Reactor . | . . . . . . . . . Propulsion 41 | . 2 . 2 3 15 1 13 5 Treads . | . . . . . . . . . Leg 40 | . 2 . 2 3 14 1 13 5 Wheel . | . . . . . . . . . Hover . | . . . . . . . . . Flight 1 | . . . . . 1 . . . Utility 20 | . 2 1 . 1 4 2 2 8 Device 4 | . . . . . . 1 . 3 Storage 5 | . 2 1 . . . . . 2 Processor 3 | . . . . . . 1 . 2 Hackware . | . . . . . . . . . Protection 8 | . . . . 1 4 . 2 1 Artifact . | . . . . . . . . . Weapon 26 | . 1 . . 1 13 3 2 6 Energy Gun 3 | . . . . . 1 . . 2 Energy Cannon . | . . . . . . . . . Ballistic Gun 15 | . 1 . . 1 8 3 1 1 Ballistic Cannon . | . . . . . . . . . Launcher 5 | . . . . . 4 . 1 . Special Weapon . | . . . . . . . . . Impact Weapon 3 | . . . . . . . . 3 Slashing Weapon . | . . . . . . . . . Piercing Weapon . | . . . . . . . . . Special Melee Weapon . | . . . . . . . . . Unidentified Prototypes 6 | . . . . 2 2 . . 2 Corrupted Parts 1 | . . . . . . . . 1 System Corruption 2 | . . . . . . . . 2 Parts Lost 23 | . 2 . . . 10 . 8 3 Power 3 | . 1 . . . 2 . . . Propulsion 13 | . . . . . 6 . 5 2 Utility 3 | . . . . . 2 . 1 . Weapon 4 | . 1 . . . . . 2 1 Highest Loss Streak 4 | . 1 . . . 3 . 4 1 To Critical Strikes . | . . . . . . . . . Average Backups 13 | . 7 9 7 12 14 14 13 14 Power 1 | . . 1 1 2 1 1 1 1 Propulsion 2 | . 3 3 1 1 1 1 2 1 Utility 3 | . . . . . 2 3 4 6 Weapon 5 | . 2 5 5 8 9 8 5 4 Tool/Special . | . . . . . . . . . Unused Backups 51 | . 11 . . 3 5 7 3 22 Power 5 | . 1 . . 1 . 1 1 1 Propulsion 12 | . 6 . . 1 . . . 5 Utility 14 | . 1 . . . 1 1 1 10 Weapon 19 | . 3 . . 1 4 5 1 5 Tool/Special 1 | . . . . . . . . 1 Average Slot Usage (%) 97 | . 94 98 97 100 95 99 98 99 Engine 10 | . 13 14 11 11 10 9 9 8 Leg 36 | . 28 28 41 44 41 36 35 35 Device 2 | . . . . . . 9 2 5 Storage 12 | . 24 26 22 21 11 9 9 9 Processor 3 | . . . . . . 2 9 4 Protection 6 | . . . . . 10 6 6 7 Ballistic Gun 19 | . 22 28 22 22 20 26 26 9 Impact Weapon 5 | . . . . . . . . 16 Peak Build Rating 37 | . 8 7 9 13 24 37 37 34 Average Rating 23 | . 6 7 8 12 16 33 28 31 On Entrance 14 | 6 6 7 7 9 13 24 37 25 Naked Turns . | . . . . . . . . . Heaviest Build 51 | 12 36 30 30 35 44 48 42 51 Greatest Support 49 | 20 20 20 40 40 44 49 49 47 Greatest Overweight (x) 1 | . 1 1 . . 1 1 1 1 Average Overweight (x) . | . . 1 . . . . . . Largest Inventory Capacity 15 | . 15 15 15 15 15 15 15 15 Average Capacity 14 | . 11 15 15 15 15 15 15 15 Most Carried 15 | . 10 10 8 15 15 15 15 15 Average Carried 13 | . 7 9 7 12 14 14 14 14 Final Capacity 15 | 8 15 15 15 15 15 15 15 15 Final Carried 15 | 6 10 9 7 15 15 15 15 15 Class Distribution -------------------- 24% | Mutant 22% | Scavenger-Mutant 20% | Scavenger-Tank 14% | Gladiator 9% | Scavenger-Gunner 7% | Scavenger-Skirmisher Dominant Class ---------------- Mutant | -10/Materials Mutant | -10/Mines Scavenger-Mutant | -9/Materials Scavenger-Mutant | -9/Storage Scavenger-Mutant | -9/Garrison Scavenger-Tank | -8/Materials Scavenger-Tank | -8/Garrison Gladiator | -8/Materials Resources | -11 -10 -10 -9 -9 -9 -8 -8 -8 ----------- Run | Yrd Mat Min Mat Sto Gar Mat Gar Mat Matter Collected 4360 | 200 452 . . 223 1019 469 1206 791 Remotely . | . . . . . . . . . Salvage Created 4217 | . 645 . . 271 1027 469 700 1105 Parts 228 | . 38 . . 17 73 26 37 37 Haulers Intercepted 8 | . 2 . . 1 . . . 5 Recyclers Shooed 2 | . . . . 1 . 1 . . Parts Field Recycled . | . . . . . . . . . Retrieved Matter . | . . . . . . . . . Parts Self-Destructed . | . . . . . . . . . Prevented . | . . . . . . . . . Kills | -11 -10 -10 -9 -9 -9 -8 -8 -8 ------- Run | Yrd Mat Min Mat Sto Gar Mat Gar Mat Combat Hostiles Destroyed 106 | . 11 . . 4 39 9 25 18 Melee 1 | . . . . . . . . 1 Guns 70 | . 11 . . 4 21 9 19 6 AOE 26 | . . . . . 18 . 6 2 Classes Destroyed 12 | . 7 . . 1 2 . 2 . Worker 4 | . 1 . . . . . . 3 Builder 5 | . 2 . . . . 1 . 2 Hauler 8 | . 2 . . 1 . . . 5 Recycler 3 | . 1 . . . . . . 2 Watcher 3 | . 1 . . . . 1 . 1 Swarmer 22 | . 3 . . . 14 . 2 3 Grunt 55 | . 8 . . 4 16 4 14 9 Duelist 3 | . . . . . . . 2 1 Sentry 17 | . . . . 1 5 4 2 5 Specialist 3 | . . . . . 3 . . . Hunter 3 | . . . . . 1 1 1 . Programmer 4 | . . . . . . . 4 . Best Kill Streak 9 | . 4 . . 3 9 7 8 6 Combat Bots Only 9 | . 2 . . 1 9 5 8 4 Max Kills in Single Turn 4 | . 1 . . 1 4 1 2 2 Gunslinging . | . . . . . . . . . Exploded 4 | . . . . . 4 . 2 1 Melee 1 | . . . . . . . . 1 Uniques/NPCs Destroyed . | . . . . . . . . . Combat | -11 -10 -10 -9 -9 -9 -8 -8 -8 -------- Run | Yrd Mat Min Mat Sto Gar Mat Gar Mat Hostile Shots Fired 619 | . 59 . 3 8 256 47 119 127 Missed 178 | . 14 . 2 4 81 14 31 32 Hits 441 | . 45 . 1 4 175 33 88 95 Melee 10 | . . . . . . . 5 5 Projectile 431 | . 45 . 1 4 175 33 83 90 AOE 1 | . . . . . . . . 1 Critical Strikes 10 | . . . . . 3 . 4 3 Damage Taken 6191 | . 474 . 7 62 2274 457 1445 1472 Core 813 | . 77 . . 12 170 43 209 302 Absorbed by Shields 162 | . . . . . 51 . 26 85 Redirected to Shielding 32 | . . . . . . . 32 . Ignored by Resistances 136 | . . . . . 90 46 . . Regen/Repaired (Parts) 77 | . . . . . . . . 77 Core Remaining (%) 74 | 100 . 69 . . 54 . . . Volleys Fired 312 | . 73 2 . 25 97 33 63 19 Largest 3 | . 2 2 . 2 2 3 3 3 Hottest 114 | . 60 40 . 40 60 75 84 114 Shots Fired 678 | . 139 4 . 50 183 94 151 57 Gun 640 | . 139 4 . 50 159 94 137 57 Cannon . | . . . . . . . . . Launcher 38 | . . . . . 24 . 14 . Special . | . . . . . . . . . Kinetic 622 | . 127 4 . 50 159 94 137 51 Thermal 6 | . . . . . . . . 6 Explosive 38 | . . . . . 24 . 14 . Electromagnetic 12 | . 12 . . . . . . . Robot Hit Streak 11 | . 7 3 . 10 11 11 11 11 Robot Miss Streak 7 | . 4 1 . 3 3 3 7 6 Penetration Max . | . . . . . . . . . Secondary Targets 9 | . 1 . . . 1 . 5 2 Max Gunslinging Chain 1 | . 1 . . . 1 . 1 1 Shots Hit Robots 496 | . 79 3 . 35 110 62 119 88 Core Hits 302 | . 31 1 . 15 57 23 136 39 Critical Kills . | . . . . . . . . . Critical Parts Destroyed 6 | . . . . . 1 1 . 4 Critical Strikes 7 | . . . . . 1 1 . 5 Destroy 2 | . . . . . 1 1 . . Smash 5 | . . . . . . . . 5 Melee Attacks 84 | . . . . . . . . 84 Impact 84 | . . . . . . . . 84 Slashing . | . . . . . . . . . Piercing . | . . . . . . . . . Sneak Attacks 15 | . . . . . . . . 15 Combat Hostiles 1 | . . . . . . . . 1 Follow-up Attacks 19 | . . . . . . . . 19 Damage Inflicted 11663 | . 896 33 . 364 2469 1115 3105 3681 Guns 6270 | . 896 33 . 364 1131 1115 2085 646 Cannons . | . . . . . . . . . Explosions 2640 | . . . . . 1338 . 1020 282 Melee 2746 | . . . . . . . . 2746 Ramming 7 | . . . . . . . . 7 Kinetic 6121 | . 798 33 . 364 1131 1115 2085 595 Thermal 333 | . . . . . . . . 333 Explosive 2358 | . . . . . 1338 . 1020 . Electromagnetic 98 | . 98 . . . . . . . Impact 2746 | . . . . . . . . 2746 Slashing . | . . . . . . . . . Piercing . | . . . . . . . . . Highest Corruption 3 | . 3 3 . . . . 1 3 Average Corruption 1 | . 2 3 . . . . 1 1 Corruption Purged . | . . . . . . . . . Corruption Blocked . | . . . . . . . . . Effects 26 | . 5 2 . . . . 2 17 Message Errors 4 | . 1 . . . . . . 3 Matter Fused 8 | . 1 1 . . . . 1 5 Heat Flow Errors 3 | . . 1 . . . . . 2 Energy Discharges 1 | . . . . . . . 1 . Parts Rejected 1 | . . . . . . . . 1 Data Loss (minor) 5 | . 1 . . . . . . 4 Data Loss (major) 2 | . 1 . . . . . . 1 Misfires 1 | . 1 . . . . . . . Alerts 1 | . . . . . . . . 1 Overload Shots . | . . . . . . . . . Overflow Damage 815 | . . . . . 103 . 1 711 Projectiles . | . . . . . . . . . Explosions 167 | . . . . . 103 . 1 63 Melee 648 | . . . . . . . . 648 Knockbacks 8 | . . . . . . . . 8 Impact 8 | . . . . . . . . 8 Kinetic . | . . . . . . . . . Secondary . | . . . . . . . . . Self-Inflicted Damage 362 | . . . . . 257 . 105 . Shots 17 | . . . . . 13 . 4 . Rammed . | . . . . . . . . . Targets Rammed 2 | . . . . . . . . 2 Kicked 2 | . . . . . . . . 2 Crushed . | . . . . . . . . . Highest Temperature 225 | . 36 100 . 2 31 4 30 225 Average Temperature 30 | . 12 52 . 1 7 4 10 74 Received Heat Transfer 1895 | . 216 . . 24 527 162 387 579 Siege Activations . | . . . . . . . . . Martial Activations . | . . . . . . . . . Shielding Activations . | . . . . . . . . . Robots Disrupted . | . . . . . . . . . Combat Hostiles . | . . . . . . . . . Robots Corrupted 10 | . . . . . . . . 10 Combat Hostiles 9 | . . . . . . . . 9 Parts Fried 24 | . . . . . . . . 24 Impact Corruptions 23 | . . . . . . . . 23 Robots Melted . | . . . . . . . . . Combat Hostiles . | . . . . . . . . . Parts Melted 1 | . . . . . . . 1 . Heat Transferred 261 | . . . . . . . . 261 Parts Sabotaged . | . . . . . . . . . Parts Stolen . | . . . . . . . . . Parts Stripped . | . . . . . . . . . Power Chain Reactions . | . . . . . . . . . Alert | -11 -10 -10 -9 -9 -9 -8 -8 -8 ------- Run | Yrd Mat Min Mat Sto Gar Mat Gar Mat Maximum Alert Level 4 | . . . . 1 4 3 4 3 Low Security (%) 19 | . 100 100 100 92 5 . . . Level 1 3 | . . . . 7 12 . . . Level 2 27 | . . . . . 25 53 23 43 Level 3 35 | . . . . . 21 46 45 56 Level 4 14 | . . . . . 34 . 30 . Level 5 . | . . . . . . . . . High Security . | . . . . . . . . . Max Security . | . . . . . . . . . Peak Influence 1480 | . 150 31 . 224 1391 790 1480 902 Initial 721 | . . 31 . . 145 677 496 721 Average 664 | . 70 11 . 67 835 718 946 692 Influence Increases 4198 | . 334 . . 316 1366 247 1124 811 Destroy 0b10 Robot/C 2500 | . 220 . . 200 820 180 620 460 Destroy 0b10 Robot/NC 125 | . 35 . . 5 . 10 5 70 Destroy Leader 322 | . 46 . . 62 20 52 30 112 Allied During Kill 107 | . . . . 37 12 . 43 15 Successful Hack 30 | . . . . 12 . 4 14 . Disable Machine 60 | . . . . . 30 . . 30 Anti-Garrison Action 700 | . . . . . 350 . 350 . Destroy Structure 204 | . 3 . . . 89 1 62 49 Lose Combat Pursuer 150 | . 30 . . . 45 . . 75 Influence Decreases 3636 | . 252 82 . 92 199 874 408 1729 Entered New Map 1871 | . . 51 . . 79 714 268 759 Time Decay 1115 | . 232 31 . 72 . 160 . 620 Lost Part 230 | . 20 . . . 100 . 80 30 Lost Ally 120 | . . . . 20 20 . 60 20 Purge Threat 300 | . . . . . . . . 300 Squads Dispatched 16 | . 3 . . 3 . 3 . 7 Investigation 3 | . . . . 1 . . . 2 Extermination . | . . . . . . . . . Reinforcement 5 | . 3 . . 1 . . . 1 Assault 4 | . . . . . . . . 4 Garrison 4 | . . . . 1 . 3 . . Intercept . | . . . . . . . . . Searches Triggered . | . . . . . . . . . Construction Impeded . | . . . . . . . . . Haulers Reinforced . | . . . . . . . . . Active Scanning Responses . | . . . . . . . . . Cargo Convoy Interrupts . | . . . . . . . . . Stealth | -11 -10 -10 -9 -9 -9 -8 -8 -8 --------- Run | Yrd Mat Min Mat Sto Gar Mat Gar Mat Distress Signals 9 | . 5 . . 1 . 1 . 2 Communications Jammed . | . . . . . . . . . Distress Signals . | . . . . . . . . . Times Spotted 165 | . 26 . 1 11 41 11 29 46 Peak Tracking Total 7 | . 5 . 3 2 7 4 7 6 Tactical Retreats 7 | . 2 . . . 2 . . 3 Traps | -11 -10 -10 -9 -9 -9 -8 -8 -8 ------- Run | Yrd Mat Min Mat Sto Gar Mat Gar Mat Traps Triggered 18 | . 2 . . . 6 . 7 3 Indirectly . | . . . . . . . . . Trap Hack Attempts . | . . . . . . . . . Triggered . | . . . . . . . . . Disarmed . | . . . . . . . . . Reprogrammed . | . . . . . . . . . Reused . | . . . . . . . . . Traps Extracted . | . . . . . . . . . Installed . | . . . . . . . . . Triggered . | . . . . . . . . . Machines | -11 -10 -10 -9 -9 -9 -8 -8 -8 ---------- Run | Yrd Mat Min Mat Sto Gar Mat Gar Mat Machines Disabled 14 | . . . . . 8 . 4 2 Max in Single Turn 2 | . . . . . 2 . 1 2 Garrison Access 1 | . . . . . . . . 1 Garrison Relay 9 | . . . . . 5 . 4 . Machines Repaired . | . . . . . . . . . Machines Dismantled . | . . . . . . . . . Machines Sabotaged . | . . . . . . . . . Overloaded Fab Kills . | . . . . . . . . . Hacking | -11 -10 -10 -9 -9 -9 -8 -8 -8 --------- Run | Yrd Mat Min Mat Sto Gar Mat Gar Mat Machines Accessed 14 | . . . . 3 1 1 4 5 Terminals 11 | . . . . 2 1 . 4 4 Fabricators . | . . . . . . . . . Repair Stations 1 | . . . . . . . . 1 Recycling Units . | . . . . . . . . . Scanalyzers . | . . . . . . . . . Garrison Access 2 | . . . . 1 . 1 . . Total Hacks 22 | . . . . 4 2 1 7 8 Successful 10 | . . . . 3 . 1 2 4 Failed 12 | . . . . 1 2 . 5 4 Catastrophic 3 | . . . . . . . 2 1 Database Lockouts . | . . . . . . . . . Manual 5 | . . . . . . . . 5 Terminals 19 | . . . . 3 2 . 7 7 Fabricators . | . . . . . . . . . Repair Stations 1 | . . . . . . . . 1 Recycling Units . | . . . . . . . . . Scanalyzers . | . . . . . . . . . Garrison Access 2 | . . . . 1 . 1 . . Terminal Hacks 7 | . . . . 2 . . 2 3 Open Door 2 | . . . . 1 . . 1 . Level Access Points 1 | . . . . 1 . . . . Terminal Index 1 | . . . . . . . . 1 Unreport Threat 2 | . . . . . . . . 2 Patrol Navigation 1 | . . . . . . . 1 . Fabricator Hacks . | . . . . . . . . . Repair Station Hacks . | . . . . . . . . . Recycling Unit Hacks . | . . . . . . . . . Scanalyzer . | . . . . . . . . . Garrison Access Hacks 2 | . . . . 1 . 1 . . Unlock Access 2 | . . . . 1 . 1 . . Unauthorized Hacks 1 | . . . . . . . . 1 Terminals . | . . . . . . . . . Fabricators . | . . . . . . . . . Repair Stations 1 | . . . . . . . . 1 Patch 1 | . . . . . . . . 1 Recycling Units . | . . . . . . . . . Scanalyzers . | . . . . . . . . . Garrison Access . | . . . . . . . . . Data Cores Recovered . | . . . . . . . . . Used . | . . . . . . . . . Hacking Detections 8 | . . . . 1 1 . 3 3 Full Trace Events 1 | . . . . . . . 1 . Feedback Events . | . . . . . . . . . Feedback Blocked . | . . . . . . . . . Robot Schematics Acquired . | . . . . . . . . . Robots Built . | . . . . . . . . . Authchips . | . . . . . . . . . Time . | . . . . . . . . . Total Robot Build Rating . | . . . . . . . . . Part Schematics Acquired . | . . . . . . . . . Parts Built . | . . . . . . . . . Authchips . | . . . . . . . . . Time . | . . . . . . . . . Total Part Build Rating . | . . . . . . . . . Parts Repaired . | . . . . . . . . . Time . | . . . . . . . . . Parts Recycled . | . . . . . . . . . Recycled Matter . | . . . . . . . . . Retrieved Matter . | . . . . . . . . . Retrieved Components . | . . . . . . . . . Parts Scanalyzed . | . . . . . . . . . Part Schematics Acquired . | . . . . . . . . . Parts Damaged . | . . . . . . . . . Bothacking | -11 -10 -10 -9 -9 -9 -8 -8 -8 ------------ Run | Yrd Mat Min Mat Sto Gar Mat Gar Mat Used RIF Installer . | . . . . . . . . . Robots Hacked . | . . . . . . . . . Non-combat . | . . . . . . . . . Combat . | . . . . . . . . . Robot Hacks Applied . | . . . . . . . . . Relay Couplers Released 44 | . . . . . 21 . 21 2 Machine Destruction 40 | . . . . . 21 . 17 2 Programmers 4 | . . . . . . . 4 . Fabnet Peak Effective % . | . . . . . . . . . Robots Rewired 6 | . . . . . 1 . 5 . Allies Hacked 1 | . . . . . . . 1 . Hacks Repelled . | . . . . . . . . . Allies | -11 -10 -10 -9 -9 -9 -8 -8 -8 -------- Run | Yrd Mat Min Mat Sto Gar Mat Gar Mat Total Allies 9 | . . 3 . . 1 . 5 . Largest Group 3 | . . 3 3 3 1 . 3 2 Highest-Rated Group 70 | . . 40 40 40 8 . 70 70 Highest-Rated Ally 39 | . . 16 16 16 8 . 39 39 Initial Warlord ECA Mod 24 | . . . . . . 6 6 12 Total Orders . | . . . . . . . . . Ally Attacks 117 | . . . 1 45 16 . 34 21 Total Damage 1584 | . . . . 605 121 . 513 345 Kills 21 | . . . . 6 2 . 6 7 Allies Corrupted . | . . . . . . . . . Allies Melted . | . . . . . . . . . Intel | -11 -10 -10 -9 -9 -9 -8 -8 -8 ------- Run | Yrd Mat Min Mat Sto Gar Mat Gar Mat Active Infowar (turns) 1832 | . . . . . . 78 1289 465 Optics 1832 | . . . . . . 78 1289 465 Robot Analysis Total . | . . . . . . . . . Derelict Logs Recovered . | . . . . . . . . . Drone Launches . | . . . . . . . . . Drone Recoveries . | . . . . . . . . . Exploration | -11 -10 -10 -9 -9 -9 -8 -8 -8 ------------- Run | Yrd Mat Min Mat Sto Gar Mat Gar Mat Turns Passed 6270 | . 768 107 28 234 1439 325 1289 2080 Spaces Moved 3133 | 1 292 53 22 116 830 136 704 979 Core . | . . . . . . . . . Treads . | . . . . . . . . . Legs 3133 | 1 292 53 22 116 830 136 704 979 Wheels . | . . . . . . . . . Hover . | . . . . . . . . . Flight . | . . . . . . . . . Fastest Speed 105 | 120 120 190 120 120 105 105 105 112 Average Speed 150 | 120 180 190 120 120 127 136 137 173 Slowest Speed 190 | 120 190 190 120 120 190 185 190 190 Overloaded Moves . | . . . . . . . . . Propulsion Burnouts . | . . . . . . . . . Robots Hopped . | . . . . . . . . . Potential Cave-ins . | . . . . . . . . . Cave-ins Triggered . | . . . . . . . . . Exploration Rate (%) 35 | 2 52 18 4 21 68 10 75 73 Regions Visited 8 Branch Regions 2 Pre-discovered Areas . | . . . . . . . . . Known Exits Taken 2 | . . . . 1 . 1 . . Unknown Exits Taken 4 | 1 1 1 1 . . . . . Scrap Searched . | . . . . . . . . . Spaces Dug 57 | . . . . . 37 . 14 6 Terrain Destroyed 199 | . . . . . 106 . 42 51 Melee 6 | . . . . . . . . 6 Projectile . | . . . . . . . . . AOE 193 | . . . . . 106 . 42 45 Terrain Rammed . | . . . . . . . . . Walls Destroyed . | . . . . . . . . . Machines Disabled . | . . . . . . . . . Actions | -11 -10 -10 -9 -9 -9 -8 -8 -8 --------- Run | Yrd Mat Min Mat Sto Gar Mat Gar Mat Total 4082 | . 410 56 23 170 1066 232 908 1217 Wait 170 | . 19 1 . 2 15 25 34 74 Move 3125 | . 291 52 21 115 828 136 703 979 Hop . | . . . . . . . . . Pick Up 80 | . 10 . . 11 17 15 8 19 Fast Attach 34 | . 2 . . 3 4 1 5 19 Attach 21 | . 1 1 2 . 8 2 4 3 Detach 2 | . . . . 1 1 . . . Swap 80 | . 4 . . 4 39 4 19 10 Drop 110 | . 10 . . 9 26 16 14 35 Fire 312 | . 73 2 . 25 97 33 63 19 Melee 57 | . . . . . . . . 57 Ram . | . . . . . . . . . Kick 2 | . . . . . . . . 2 Crush . | . . . . . . . . . Escape Stasis 51 | . . . . . 17 . 34 . Rewire 38 | . . . . . 14 . 24 . Trap . | . . . . . . . . . Miscellaneous . | . . . . . . . . . Route ------- -11/Scrapyard -10/Materials -10/Mines -9/Materials -9/Storage (discovered 2 exits: Mat / Gar) -9/Garrison (discovered 3 exits: *Mat x3) -8/Materials -8/Garrison (discovered 4 exits: *Mat x4) -8/Materials History --------- Turn | Location | Event 1 | -11/Scrapyard | Discovered new exit (range 0) 1 | -11/Scrapyard | Entered Materials 331 | -10/Materials | Build established: Mutant 686 | -10/Materials | Discovered new exit (range 9) 769 | -10/Materials | Entered Mines 853 | -10/Mines | Discovered new exit (range 6) 866 | -10/Mines | Assisted by bots powering up and referring to "LRC-V3" 876 | -10/Mines | Entered Materials 876 | -9/Materials | Accompanied by 3 allies 876 | -9/Materials | Evolved 2 slots: Propulsion x2 878 | -9/Materials | Discovered new exit (range 7) 904 | -9/Materials | Entered Storage 904 | -9/Storage | Accompanied by 3 allies 986 | -9/Storage | Identified exit to Materials 1101 | -9/Storage | Garrison activated, responded to threat 1129 | -9/Storage | Identified exit to Garrison 1138 | -9/Storage | Entered Garrison 1159 | -9/Garrison | Garrison Relay disabled 1179 | -9/Garrison | Build established: Scavenger-Mutant 1267 | -9/Garrison | Destroyed 7 combat bots 1271 | -9/Garrison | Lost 3 parts (1p1n1u) 1348 | -9/Garrison | Garrison Relay disabled 1402 | -9/Garrison | Triggered checkpoint 1402 | -9/Garrison | Triggered checkpoint 1605 | -9/Garrison | Discovered exit to Materials (range 8) 1656 | -9/Garrison | Triggered checkpoint 1692 | -9/Garrison | Garrison Relay disabled 1757 | -9/Garrison | Triggered checkpoint 1819 | -9/Garrison | Destroyed 9 combat bots 1942 | -9/Garrison | Triggered checkpoint 1959 | -9/Garrison | Garrison Relay disabled 1996 | -9/Garrison | Discovered exit to Materials (range 15) 2302 | -9/Garrison | Triggered checkpoint 2320 | -9/Garrison | Discovered exit to Materials (range 14) 2444 | -9/Garrison | Triggered checkpoint 2450 | -9/Garrison | Garrison Relay disabled 2476 | -9/Garrison | Attempted to access garrison exit controls, blocked by remote lockdown 2577 | -9/Garrison | Entered Materials 2577 | -8/Materials | Evolved 2 slots: Utility x1, Weapon x1 2623 | -8/Materials | Garrison activated, responded to threat 2902 | -8/Materials | Identified exit to Garrison 2902 | -8/Materials | Entered Garrison 2942 | -8/Garrison | Triggered checkpoint 2985 | -8/Garrison | Garrison Relay disabled 3062 | -8/Garrison | Triggered checkpoint 3116 | -8/Garrison | Discovered new exit (range 6) 3128 | -8/Garrison | Build established: Scavenger-Skirmisher 3194 | -8/Garrison | Triggered checkpoint 3241 | -8/Garrison | Discovered new exit (range 17) 3254 | -8/Garrison | Triggered checkpoint 3296 | -8/Garrison | Lost 3 parts (2n1u) 3320 | -8/Garrison | Garrison Relay disabled 3508 | -8/Garrison | Triggered checkpoint 3601 | -8/Garrison | Destroyed 8 combat bots 3609 | -8/Garrison | Lost 4 parts (2n2w) 3618 | -8/Garrison | Triggered checkpoint 3629 | -8/Garrison | Build established: Scavenger-Tank 3753 | -8/Garrison | Discovered new exit (range 5) 3788 | -8/Garrison | Triggered checkpoint 3826 | -8/Garrison | Garrison Relay disabled 4050 | -8/Garrison | Triggered checkpoint 4115 | -8/Garrison | Garrison Relay disabled 4146 | -8/Garrison | Discovered new exit (range 8) 4191 | -8/Garrison | Entered Materials 4191 | -8/Materials | Accompanied by 2 allies 4254 | -8/Materials | Met 7R-MNS 4628 | -8/Materials | Build established: Scavenger-Gunner 4633 | -8/Materials | Core integrity fell below 50% 5275 | -8/Materials | Build established: Mutant 5677 | -8/Materials | Build established: Gladiator 6191 | -8/Materials | First assault squad dispatched 6227 | -8/Materials | Core integrity fell below 20% 6271 | -8/Materials | Destroyed by G-47 Trooper with Particle Gun Last Messages --------------- 06212_ Carbon-fiber Leg destroyed. 06243_ Powered Hammer follow-up attack on G-50 Soldier. 06249_ Destroyed Lgt. Angular Momentum Engine. 06249_ G-50 Soldier system corrupted by crushing effect. 06249_ Powered Hammer follow-up attack on G-50 Soldier. 06250_ G-50 Soldier system terminally corrupted. 06259_ L-31 Rogue knocked back. 06265_ Powered Hammer follow-up attack on L-31 Rogue. 06265_ L-31 Rogue knocked back. 06268_ Powered Hammer follow-up attack on L-31 Rogue. 06268_ Destroyed Core Shielding. 06268_ L-31 Rogue system corrupted by crushing effect. 06268_ L-31 Rogue knocked back. 06269_ L-31 Rogue system terminally corrupted. Map ----- +----------------------------------------------------+ | ????????????????######## #????????*] #???# | | ?????????????????#####?# #??????????? #???# | | ?????????????????# #?# [#????????????# # | | ?????????????????# #?# % #????????????# #####+ | | ?????????????????# #?# % #????????????# ???# | | ?????????????????# #?#% #???#######??# ???# | | ?????????????????# #?#% #?? #??# ???# | | ?????????????????# #?# %#?? #??# ???# | | ?????????????????# ### ## #??# ???# | | ?????#######+######+### % #% [ ] ! #??# #??# | | %#!/ #??# #??# | | % +%%! "### #??# | | %# /%" #??# | | #####+######+########## # ! #### #??# | | ??????????????????????### ###? #??# #??#!= | | ????????????????????????# #???########??# #??#!! | | ????????????????????????# #?????????????# #??#%! | | ????????????????????????# #?????????????# [ ####*! | | ????????????????????????# #?????????????# *%* | | ????????????????????????# #?????????????# **= | | ????????????????????????# #?????????????# | | ????????????????????????# #???????????######+### | | ????????????????????????# #???????????# #^ | | ????????????????????????# #???????????#""""" # | | ????????????????????????#%#???????????#""""" # | | ????????????????????#####@#####???????#""""" # | | ????????????????????# =[ #????????""""" + | | ????????????????????# %= #????????""""" # | | ????????????????????# #?????????"""" ### | | ????????????????????# #?????????"""" #?# | | ????????????????????# % #????????? #?# | | ????????????????????# #????????#########?# | | ????????????????????# g #??????????????????# | | ????????????????????# #??????????????????# | | ?????????##############+##############???????????# | | ???????? #???????????# | | ???????? [%= #???????????# | | ???????? % #???????????# | | ?????????# ###########+########## +???????????# | | ???????????????????## ##????????????###### | | ??????????????????### ! "#??????????? +!!! ! | | ??????????????????# "* = "##???????????###### | | ??????????????????# " = # #???????????????? | | ?????????# ########" ###???????????????? | | ??????? " % " #??????????????? ] | | ??????? ##"" " #??????????????? | | ????????#######+####" " #?????????????? | | ?????????????? """ "# ""##?????????????? ] | | ?????????????? "Y" ## #??????????????# | | ??????????????" # ######??????????????# | +----------------------------------------------------+ Best States ------------- Heat Dissipation 50 Energy Generation 14 Energy Capacity 280 Matter Stores 402 Matter Capacity 500 Sight Range 20 Terrain Scan Density 10 Armor Coverage 225 Resistance: KI 20 Core Shielding 20 Evasion (%) 55 Targeting Accuracy 6 Item Schematics ----------------- None Robot Schematics ------------------ None Fabricated ------------ Nothing Repaired ---------- Nothing Alien Tech Used ----------------- None Achievements -------------- None Challenges ------------ None Game ------ Seed WaveSuperdenseShearcannon Manual? 0 Play Time 00:48:07 Cumulative 233.1 hours Start 2025.06.07 @ 13:09:01 End 2025.06.07 @ 13:55:27 Sessions 1 Manual Loads 0 Difficulty Rogue Special Mode None Game No. 138 Rogue 138 Adventurer 0 Explorer 0 Win Type - Total 10 Types 10/0/0/0/0/0/0/0/0/0 Lore% 68 Gallery% 67 Achievement% 61 Wizard Run 0 Options --------- Layout 1 ASCII 0 Keyboard 0 Movement Numpad Keybinds 0 Fullscreen 1 Font 24/Smallcaps Map View 50x35 Zoom Use 0% Tactical HUD 1 Map Filters NONE Filters NONE Steam 1 RUN: 7f726289-9ab5-4d55-ad48-23b46d4f3034